bitfinex-derivatives/quotes_SOLF0:USTF0_20240926
["timestamp","ask_amount","ask_price","bid_price","bid_amount"]
[1727318746894,13.0739,149.26,149.21,10.32]
[1727318747295,3.3507,149.25,149.21,13.6713]
[1727318748109,13.0739,149.26,149.21,13.6713]
[1727318748287,3.3508,149.24,149.21,13.6713]
[1727318752299,13.0739,149.26,149.21,10.32]
[1727318752497,1.3145,149.29,149.24,10.32]
[1727318752695,3.38485383,149.28,149.25,10.32]
[1727318752997,3.3501,149.28,149.25,10.32]
[1727318753395,4.71956454,149.29,149.25,10.32]
[1727318753791,3.3499,149.28,149.25,10.32]
[1727318753993,3.3499,149.28,149.25,13.6705]
[1727318754197,22.7863,149.4,149.27,10.32]
[1727318754198,23.93469324,149.39,149.27,10.32]
[1727318754402,10.32,149.34,149.29,10.32]
[1727318754800,10.32,149.33,149.18,83.82450412]
[1727318754997,3.3494,149.31,149.28,10.32]
[1727318755202,1.3489,149.39,149.3,10.32]
[1727318755498,3.3489,149.33,149.3,10.32]
[1727318755896,10.32,149.34,149.29,10.32]
[1727318756101,3.349,149.32,149.29,10.32]
[1727318759210,3.3493,149.31,149.29,10.32]
[1727318760404,3.3495,149.3,149.23,80.44]
[1727318760612,10.32,149.32,149.27,10.32]
[1727318760901,3.3498,149.29,149.26,10.32]
[1727318761108,10.32,149.31,149.27,10.32]
[1727318761305,12.22393134,149.39,149.3,10.32]
[1727318761503,3.3489,149.33,149.31,10.32]
[1727318761906,10.32,149.35,149.31,10.32]
[1727318762210,1.3489,149.39,149.31,10.32]
[1727318762409,1.3489,149.39,149.32,10.32]
[1727318762605,10.32,149.38,149.33,10.32]
[1727318762808,3.3485,149.35,149.33,10.32]
[1727318763110,10.32,149.38,149.33,10.32]
[1727318763909,1.3489,149.39,149.33,10.32]
[1727318764102,10.32,149.37,149.33,10.32]
[1727318764299,10.32,149.38,149.33,10.32]
[1727318764702,3.3485,149.35,149.33,10.32]
[1727318764900,10.32,149.38,149.33,10.32]
[1727318765304,3.3488,149.33,149.32,10.32]
[1727318766114,3.349,149.32,149.31,10.32]
[1727318766311,10.32,149.36,149.31,10.32]
[1727318766708,10.32,149.36,149.32,10.32]
[1727318766709,3.3489,149.33,149.32,10.32]
[1727318767820,1.3489,149.39,149.32,10.32]
[1727318768023,1.3489,149.39,149.33,10.32]
[1727318768024,10.32,149.38,149.33,10.32]
[1727318769420,1.3489,149.39,149.35,10.32]
[1727318769820,11.6689,149.39,149.35,10.32]
[1727318770814,3.3481,149.36,149.35,10.32]
[1727318771421,3.31095593,149.41,149.35,10.32]
[1727318771615,10.0307,149.57,149.26,83.78081274]
[1727318771616,3.9908,149.48,149.4,10.32]
[1727318771815,10.32,149.45,149.4,10.32]
[1727318772024,10.32,149.43,149.31,1.2694]
[1727318772322,10.32,149.41,149.36,10.32]
[1727318772520,3.3478,149.38,149.36,10.32]
[1727318772720,2.6584,149.42,149.35,10.32]
[1727318772721,5.99262335,149.42,149.35,10.32]
[1727318772920,10.32,149.39,149.35,10.32]
[1727318773121,5.99262335,149.42,149.3,52.57988433]
[1727318773321,10.32,149.38,149.34,10.32]
[1727318773615,10.32,149.39,149.35,10.32]
[1727318774428,3.3481,149.36,149.35,10.32]
[1727318776118,1.3468,149.41,149.2,227.0]
[1727318776319,1.3468,149.41,149.28,10.32]
[1727318776320,10.32,149.33,149.28,10.32]
[1727318776719,3.3494,149.3,149.28,10.32]
[1727318777426,1.3267,149.35,149.28,10.32]
[1727318777626,10.32,149.33,149.28,10.32]
[1727318778633,10.32,149.32,149.27,10.32]
[1727318779025,3.3498,149.29,149.27,10.32]
[1727318779327,3.3498,149.29,149.26,10.32]
[1727318780926,3.3511,149.23,149.21,81.6694]
[1727318781126,10.32,149.27,149.22,10.32]
[1727318783333,3.351,149.23,149.21,90.72]
[1727318784123,3.3508,149.24,149.21,90.72]
[1727318784324,3.3508,149.24,149.22,10.32]
[1727318784734,1.3679,149.3,149.23,10.32]
[1727318784735,10.32,149.29,149.23,10.32]
[1727318784935,10.32,149.28,149.22,10.32]
[1727318785131,10.32,149.26,149.22,10.32]
[1727318785936,10.32,149.26,149.21,80.4]
[1727318786626,3.351,149.23,149.21,80.4]
[1727318787133,10.32,149.25,149.21,80.4]
[1727318787535,3.3512,149.22,149.21,80.4]
[1727318788533,3.351,149.23,149.21,80.4]
[1727318788830,10.32,149.28,149.22,10.32]
[1727318789226,3.3505,149.26,149.22,13.6711]
[1727318789436,10.32,149.28,149.22,13.6711]
[1727318790133,3.3506,149.25,149.22,10.32]
[1727318791136,1.3679,149.3,149.22,10.32]
[1727318791337,10.32,149.28,149.22,10.32]
[1727318791729,1.3679,149.3,149.16,85.05003566]
[1727318791730,1.3679,149.3,149.27,10.32]
[1727318791933,1.3679,149.3,149.29,10.32]
[1727318793941,1.3679,149.3,149.26,10.32]
[1727318794441,1.3679,149.3,149.24,19.4307]
[1727318794442,3.3502,149.27,149.24,19.4307]
[1727318794635,1.3679,149.3,149.24,19.4307]
[1727318794941,3.3499,149.28,149.24,19.4307]
[1727318797634,3.3503,149.26,149.24,16.08]
[1727318797839,1.3679,149.3,149.24,16.08]
[1727318798237,3.35,149.28,149.24,19.4308]
[1727318799642,1.3679,149.3,149.24,16.08]
[1727318800843,1.3679,149.3,149.21,80.44]
[1727318800844,16.08,149.29,149.21,80.44]
[1727318801043,2.6872,149.28,149.21,80.44]
[1727318801250,3.3509,149.24,149.21,80.44]
[1727318801541,16.08,149.27,149.21,80.44]
[1727318802245,2.6872,149.28,149.21,80.44]
[1727318802547,2.6872,149.28,149.22,16.08]
[1727318802746,3.3502,149.27,149.24,16.08]
[1727318803350,2.6872,149.28,149.24,16.08]
[1727318803951,3.3503,149.26,149.24,16.08]
[1727318804846,3.3502,149.27,149.24,16.08]
[1727318805447,3.3499,149.28,149.24,19.4306]
[1727318808344,3.3501,149.27,149.24,19.4306]
[1727318809055,1.3679,149.3,149.19,80.44]
[1727318809056,1.3679,149.3,149.22,16.08]
[1727318809354,1.3679,149.3,149.22,19.431]
[1727318810555,3.3504,149.26,149.22,19.431]
[1727318811051,16.08,149.29,149.2,16.08]
[1727318811551,3.3507,149.25,149.21,3.3514]
[1727318811757,3.3507,149.25,149.2,16.08]
[1727318812255,3.3503,149.27,149.22,3.351]
[1727318812448,16.08,149.29,149.22,3.351]
[1727318812650,1.3679,149.3,149.22,19.431]
[1727318813052,3.3505,149.26,149.22,3.351]
[1727318813253,16.08,149.29,149.19,96.52]
[1727318813855,3.351,149.24,149.2,3.3516]
[1727318814959,3.3511,149.23,149.19,99.8718]
[1727318815552,3.33489572,149.26,149.19,96.52]
[1727318815754,1.3021,149.26,149.19,80.44]
[1727318815953,3.40092995,149.25,149.19,80.44]
[1727318816252,2.6751,149.26,149.19,83.7918]
[1727318816653,3.3511,149.23,149.19,80.44]
[1727318816858,3.3511,149.23,149.19,99.8718]
[1727318817358,3.3512,149.22,149.19,99.8718]
[1727318817558,3.3512,149.22,149.19,19.4318]
[1727318818359,3.3515,149.21,149.2,10.3]
[1727318818659,10.3,149.24,149.2,10.3]
[1727318818860,3.3514,149.22,149.2,10.3]
[1727318819154,10.3,149.24,149.2,10.3]
[1727318820460,3.41256143,149.26,149.21,10.3]
[1727318820664,3.3509,149.24,149.22,10.3]
[1727318821261,10.3,149.26,149.22,10.3]
[1727318822062,3.3508,149.24,149.22,10.3]
[1727318822860,3.351,149.23,149.22,10.3]
[1727318823565,3.3513,149.22,149.21,10.3]
[1727318823761,10.3,149.23,149.14,133.06783225]
[1727318824263,10.3,149.23,149.18,10.3]
[1727318824467,3.352,149.19,149.16,10.3]
[1727318825262,10.3,149.21,149.16,10.3]
[1727318825263,3.3522,149.18,149.16,10.3]
[1727318825465,10.3,149.21,149.16,10.3]
[1727318826463,16.1,149.21,149.14,80.44]
[1727318826660,2.7851,149.24,149.14,80.44]
[1727318826661,3.3528,149.15,149.14,80.44]
[1727318828161,3.3528,149.15,149.11,3.3537]
[1727318828370,3.353,149.14,149.11,3.3537]
[1727318829068,3.353,149.14,149.1,19.4538]
[1727318832873,3.353,149.14,149.11,3.3536]
[1727318833066,3.3529,149.15,149.1,16.1]
[1727318833666,4.72689577,149.18,149.14,16.1]
[1727318833966,1.413,149.19,149.14,16.1]
[1727318834373,2.6414,149.25,149.14,16.1]
[1727318834574,16.1,149.21,149.12,16.1]
[1727318834967,16.1,149.21,149.13,3.3532]
[1727318835869,3.3525,149.17,149.13,3.3532]
[1727318836668,16.1,149.21,149.12,16.1]
[1727318837069,3.3525,149.17,149.13,3.3531]
[1727318842374,3.3528,149.15,149.11,19.4535]
[1727318843375,3.353,149.14,149.11,19.4535]
[1727318844079,3.353,149.14,149.11,16.1]
[1727318844274,16.1,149.17,149.1,3.3539]
[1727318844471,17.3767,149.17,149.09,80.48]
[1727318844675,4.66817504,149.17,149.09,80.48]
[1727318844870,16.1,149.15,149.09,80.48]
[1727318845674,3.3539,149.11,149.09,80.48]
[1727318846184,16.1,149.15,149.09,80.48]
[1727318847680,3.3539,149.1,149.09,80.48]
[1727318847879,16.1,149.13,149.06,3.3547]
[1727318848077,16.1,149.13,149.05,52.66246792]
[1727318848280,3.3545,149.08,149.05,52.66246792]
[1727318848481,1.2956,149.12,149.05,52.66246792]
[1727318848884,3.3543,149.09,149.05,56.01736792]
[1727318849787,3.3539,149.1,149.07,3.3545]
[1727318849986,1.2956,149.12,149.05,16.1]
[1727318850185,3.354,149.1,149.06,3.3547]
[1727318850581,16.1,149.15,149.07,16.1]
[1727318850784,3.3536,149.12,149.08,3.3542]
[1727318851983,3.3533,149.13,149.09,3.3539]
[1727318852387,16.1,149.15,149.09,3.3539]
[1727318853290,3.3536,149.12,149.09,3.3539]
[1727318853492,16.1,149.15,149.08,3.3543]
[1727318853679,16.1,149.15,149.07,16.1]
[1727318853884,3.3538,149.11,149.07,19.4544]
[1727318854286,3.3535,149.12,149.07,16.1]
[1727318854686,3.3535,149.12,149.08,3.3544]
[1727318855087,16.1,149.15,149.08,3.3544]
[1727318855088,3.3537,149.11,149.08,3.3544]
[1727318855387,16.1,149.15,149.07,16.1]
[1727318855589,3.3541,149.1,149.05,16.1]
[1727318855883,3.3541,149.1,149.05,19.4548]
[1727318856087,16.1,149.15,149.05,19.4548]
[1727318856687,3.3543,149.09,149.05,19.4548]
[1727318857288,16.1,149.15,149.05,19.4548]
[1727318857985,16.1,149.13,149.05,19.4548]
[1727318858181,16.1,149.13,149.05,16.1]
[1727318858985,3.3545,149.08,149.05,19.455]
[1727318860487,16.1,149.08,149.01,80.52]
[1727318861588,3.3554,149.04,149.01,80.52]
[1727318863687,1.3383,149.1,149.02,16.1]
[1727318864186,3.3545,149.08,149.04,19.4551]
[1727318864490,1.3383,149.1,149.01,16.1]
[1727318864691,17.4383,149.1,149.01,16.1]
[1727318864988,16.1,149.08,148.98,16.1]
[1727318865387,3.3557,149.02,148.98,19.4565]
[1727318865586,3.3557,149.02,148.97,16.1]
[1727318865790,16.1,149.06,148.97,16.1]
[1727318865984,1.4147,149.05,148.97,16.1]
[1727318866786,1.4147,149.05,148.97,19.4568]
[1727318866988,1.4147,149.05,148.97,16.1]
[1727318867187,3.3562,149.0,148.97,16.1]
[1727318870191,3.3562,149.0,148.97,19.4568]
[1727318870693,3.3562,149.0,148.97,16.1]
[1727318870992,3.3558,149.02,148.97,16.1]
[1727318872786,3.3558,149.02,148.99,3.3563]
[1727318873489,3.3556,149.03,148.99,3.3563]
[1727318874886,3.3557,149.02,148.99,3.3563]
[1727318877189,3.3556,149.03,148.99,3.3563]
[1727318878395,3.3556,149.03,149.0,10.31]
[1727318879496,3.3553,149.04,149.01,10.31]
[1727318879999,3.3551,149.05,149.03,10.31]
[1727318880200,3.3551,149.05,149.04,10.31]
[1727318880399,10.31,149.07,149.02,10.31]
[1727318880595,10.31,149.05,149.01,10.31]
[1727318880796,10.31,149.07,149.02,10.31]
[1727318881197,3.3552,149.05,149.01,3.3557]
[1727318881396,3.3552,149.05,149.03,10.31]
[1727318881899,3.3553,149.04,148.96,1.2734]
[1727318882089,4.64788467,149.09,149.03,10.31]
[1727318882290,4.64788467,149.09,149.05,10.31]
[1727318882291,3.3545,149.08,149.05,10.31]
[1727318882596,1.2962,149.09,149.05,10.31]
[1727318882797,1.2962,149.09,148.97,80.56]
[1727318883302,3.3546,149.07,148.97,80.56]
[1727318883697,1.2962,149.09,148.97,80.56]
[1727318884397,4.59372493,149.09,148.97,80.56]
[1727318885097,4.59372493,149.09,149.0,3.356]
[1727318885500,3.3554,149.04,149.0,3.356]
[1727318886601,3.3554,149.04,149.01,3.3559]
[1727318888605,3.3551,149.05,149.01,3.3559]
[1727318888804,4.59372493,149.09,149.01,3.3559]
[1727318889305,3.3553,149.04,149.01,3.3559]
[1727318890001,4.59372493,149.09,149.01,3.3559]
[1727318890205,3.3552,149.05,149.01,3.3559]
[1727318890903,1.2962,149.09,149.01,3.32314553]
[1727318891100,1.3448,149.12,148.97,80.56]
[1727318892803,1.3448,149.12,149.0,3.356]
[1727318893601,3.3555,149.04,149.0,3.356]
[1727318894197,3.3555,149.04,149.01,3.3559]
[1727318894804,3.3557,149.02,148.97,80.56]
[1727318895403,3.3557,149.02,148.98,3.3565]
[1727318897715,3.3556,149.03,148.99,3.3563]
[1727318897916,3.3556,149.03,148.97,80.56]
[1727318898914,3.3553,149.04,149.0,3.3562]
[1727318903720,3.3555,149.03,149.0,3.3562]
[1727318904422,3.3558,149.02,148.99,3.3563]
[1727318905220,3.3558,149.02,148.96,81.8334]
[1727318905221,2.7208,149.06,148.98,3.3565]
[1727318905720,3.3559,149.02,148.98,3.3565]
[1727318909218,3.3559,149.02,148.94,80.56]
[1727318909219,2.7208,149.06,148.94,80.56]
[1727318910322,3.3565,148.99,148.95,3.3571]
[1727318911529,3.3562,149.0,148.96,3.357]
[1727318913630,2.7208,149.06,148.96,3.357]
[1727318913631,3.3564,148.99,148.96,3.357]
[1727318914133,3.3564,148.99,148.95,3.3572]
[1727318921039,2.7208,149.06,148.93,52.70568931]
[1727318921040,3.3568,148.98,148.94,3.3574]
[1727318921333,2.7208,149.06,148.94,3.3574]
[1727318921636,3.357,148.97,148.93,3.3576]
[1727318922030,3.3573,148.96,148.92,3.3579]
[1727318922348,26.91989908,149.06,148.92,3.3579]
[1727318922522,3.3572,148.96,148.92,3.3579]
[1727318922727,3.37754731,148.99,148.92,3.3579]
[1727318922925,2.7051,148.98,148.92,3.3579]
[1727318923332,2.7051,148.98,148.9,80.56]
[1727318923530,1.408,148.98,148.9,80.56]
[1727318923732,3.3566,148.99,148.95,3.3571]
[1727318924431,3.3562,149.0,148.96,3.357]
[1727318925139,3.3564,148.99,148.96,3.357]
[1727318930037,3.3564,148.99,148.91,4.55233129]
[1727318930038,2.6187,149.05,148.97,3.3567]
[1727318930242,2.6187,149.05,148.92,4.55189702]
[1727318930440,3.3557,149.03,148.99,3.3563]
[1727318931041,2.6187,149.05,148.99,3.3563]
[1727318931241,3.3558,149.02,148.99,3.3563]
[1727318932142,3.3558,149.02,148.98,3.3565]
[1727318934340,2.6187,149.05,148.97,3.40307118]
[1727318934648,1.3441,149.05,148.95,80.58]
[1727318934846,4.6993,149.05,148.95,80.58]
[1727318935142,1.3177,149.06,148.95,80.58]
[1727318935342,1.3177,149.06,148.96,1.2749]
[1727318935536,4.6726,149.06,149.02,3.3556]
[1727318935941,1.3879,149.07,149.0,3.33489557]
[1727318936141,1.3879,149.07,148.98,4.55145553]
[1727318936340,1.3879,149.07,148.98,3.32918628]
[1727318936542,1.3879,149.07,148.98,4.55145553]
[1727318936735,1.3879,149.07,148.96,1.2749]
[1727318936736,1.3879,149.07,148.97,7.84000512]
[1727318936939,1.3879,149.07,148.98,4.54940635]
[1727318937144,1.3879,149.07,148.98,3.33523141]
[1727318937342,1.3879,149.07,149.04,3.3551]
[1727318937840,3.3542,149.09,149.01,3.43705457]
[1727318938137,3.3542,149.09,148.99,4.54920837]
[1727318938336,3.3542,149.09,148.99,3.31620881]
[1727318938537,3.3542,149.09,148.98,4.54920837]
[1727318938741,3.3542,149.09,148.96,1.2749]
[1727318938938,3.3542,149.09,149.04,3.3551]
[1727318939351,1.3165,149.1,148.96,1.2749]
[1727318939551,1.3165,149.1,149.02,3.3556]
[1727318940046,3.3548,149.06,149.02,3.3556]
[1727318941848,3.3548,149.06,149.03,3.3555]
[1727318942548,3.3547,149.07,149.03,3.3555]
[1727318944252,3.3549,149.06,149.02,3.3556]
[1727318945145,3.355,149.05,149.01,3.3558]
[1727318945345,1.3316,149.09,148.98,80.56]
[1727318945554,1.3833,149.07,148.98,80.56]
[1727318945850,3.3553,149.04,148.98,80.56]
[1727318947653,3.3553,149.04,149.0,3.356]
[1727318948139,3.3553,149.04,148.98,80.56]
[1727318949548,3.3553,149.04,149.01,3.3559]
[1727318950845,3.3553,149.04,149.0,3.3561]
[1727318952541,3.3551,149.05,149.01,3.3559]
[1727318952748,1.3833,149.07,148.96,5.82044692]
[1727318952942,3.3549,149.06,149.02,3.3556]
[1727318953949,3.3551,149.05,149.01,3.3558]
[1727318954456,1.3833,149.07,148.96,5.81956854]
[1727318954645,3.3554,149.04,149.0,3.3561]
[1727318959056,3.3554,149.04,149.01,3.3559]
[1727318960459,1.3833,149.07,148.97,3.3604088]
[1727318960655,1.3833,149.07,148.97,80.56]
[1727318960863,1.3833,149.07,148.97,83.86166597]
[1727318961161,4.738,149.07,149.03,3.3553]
[1727318964867,1.3833,149.07,149.04,3.3552]
[1727318965070,3.3545,149.08,149.04,3.3552]
[1727318965566,1.3316,149.09,148.98,4.54040953]
[1727318965762,1.37,149.16,148.99,4.53859307]
[1727318965966,2.6243,149.15,149.0,4.53859307]
[1727318966168,3.3537,149.11,149.07,3.3544]
[1727318967164,3.3535,149.12,149.08,3.3542]
[1727318967364,3.3535,149.12,149.05,3.34809667]
[1727318967568,3.3535,149.12,149.01,1.2752]
[1727318968760,3.3537,149.11,149.07,3.3545]
[1727318969364,3.354,149.1,149.01,1.2752]
[1727318969871,3.354,149.1,149.05,3.3549]
[1727318970271,3.3542,149.09,149.05,3.3549]
[1727318970572,3.3542,149.09,149.04,3.3552]
[1727318970769,2.6243,149.15,149.04,3.3552]
[1727318971776,3.3543,149.09,149.04,3.3552]
[1727318974567,2.6243,149.15,149.04,3.3552]
[1727318975170,3.3546,149.08,149.04,3.3552]
[1727318977775,3.3546,149.07,149.04,3.3552]
[1727318978682,3.3546,149.07,149.03,3.3554]
[1727318978977,2.6243,149.15,149.0,80.54]
[1727318979373,2.6243,149.15,149.02,3.3557]
[1727318979985,3.3549,149.06,149.03,3.3555]
[1727318981480,3.355,149.05,149.02,3.3556]
[1727318981876,4.0278,149.08,149.01,3.3558]
[1727318982081,3.3551,149.05,149.01,3.3558]
[1727318984384,3.3551,149.05,148.97,83.84166597]
[1727318984684,3.3551,149.05,148.97,80.54]
[1727318984877,3.3549,149.06,148.97,83.83002557]
[1727318985472,3.3549,149.06,149.02,3.3556]
[1727318988585,3.355,149.05,149.02,3.3556]
[1727318992587,3.355,149.05,149.01,3.3559]
[1727318995382,4.0278,149.08,148.97,83.83002557]
[1727318995788,4.0278,149.08,148.98,80.54]
[1727318996687,3.3549,149.06,149.02,3.3556]
[1727318998586,4.0278,149.08,148.98,83.94069342]
[1727318998792,24.19965628,149.15,148.99,1.2759]
[1727318999093,3.3535,149.12,149.07,3.3544]
[1727318999284,3.3535,149.12,149.0,4.53825313]
[1727318999285,2.661,149.16,149.01,4.53825313]
[1727318999487,1.3634,149.15,149.02,4.53825313]
[1727318999790,3.3536,149.12,149.02,4.53825313]
[1727319000002,3.3536,149.12,149.0,4.53825313]
[1727319000593,3.3536,149.12,148.99,1.2759]
[1727319000782,3.3536,149.12,149.07,3.3545]
[1727319001592,1.3634,149.15,149.06,3.41969893]
[1727319001793,4.66865028,149.15,149.0,4.53954616]
[1727319001986,8.02145028,149.15,149.01,4.53954616]
[1727319002187,4.7162,149.15,148.99,1.2759]
[1727319002387,4.7162,149.15,149.02,4.53852905]
[1727319002593,4.7162,149.15,149.03,4.53852905]
[1727319002887,3.353,149.14,149.04,5.81442905]
[1727319003192,1.3634,149.15,149.04,1.2759]
[1727319003706,3.3535,149.12,149.07,3.3544]
[1727319009693,1.3634,149.15,149.03,80.54]
[1727319009903,2.7462,149.11,149.03,80.54]
[1727319010400,3.3543,149.09,149.05,3.3549]
[1727319010894,3.354,149.1,149.06,3.3548]
[1727319011097,2.7462,149.11,149.01,80.52]
[1727319011500,1.3509,149.11,149.02,1.2747]
[1727319011701,2.7587,149.15,149.02,5.81288259]
[1727319011896,4.1096,149.15,149.02,1.2747]
[1727319012391,4.1096,149.15,149.02,5.81176787]
[1727319012616,4.1096,149.15,149.02,1.2747]
[1727319013398,3.3534,149.13,149.02,1.2747]
[1727319013797,3.3534,149.13,149.02,5.81061973]
[1727319014503,3.3534,149.13,149.09,3.3541]
[1727319014905,3.3535,149.12,149.03,4.53591973]
[1727319015101,3.3535,149.12,149.02,1.2747]
[1727319015703,3.3535,149.12,149.03,80.52]
[1727319016395,3.3537,149.11,149.07,3.3544]
[1727319017406,3.3541,149.1,149.03,80.52]
[1727319018006,3.3541,149.1,149.05,3.355]
[1727319018708,3.3542,149.09,149.05,3.355]
[1727319018910,4.1096,149.15,149.04,3.3552]
[1727319019306,4.1096,149.15,149.03,80.52]
[1727319019707,28.29590442,149.15,149.03,80.52]
[1727319019910,13.07554489,149.14,149.04,3.3551]
[1727319020104,24.18630442,149.14,149.03,80.52]
[1727319020611,3.3545,149.08,148.99,80.52]
[1727319021305,3.3545,149.08,149.04,3.3551]
[1727319022207,3.3546,149.07,149.04,3.3551]
[1727319024613,4.1096,149.15,149.03,3.3554]
[1727319025513,28.30986374,149.15,149.03,3.3554]
[1727319025816,3.3549,149.06,149.02,3.3556]
[1727319026012,4.1096,149.15,149.02,3.3556]
[1727319026013,24.20233298,149.13,149.02,3.3556]
[1727319026217,11.11902084,149.14,149.02,3.3556]
[1727319026515,13.08409385,149.14,149.02,3.3556]
[1727319026715,24.20380886,149.14,149.02,3.3556]
[1727319027011,3.355,149.05,149.02,3.3556]
[1727319028316,3.3549,149.06,149.03,3.3555]
[1727319028916,3.3551,149.05,149.02,3.3557]
[1727319029119,3.3551,149.05,148.99,80.52]
[1727319029120,2.6634,149.07,148.99,80.52]
[1727319029313,4.0546,149.07,148.99,80.52]
[1727319029514,3.3554,149.04,149.01,3.3558]
[1727319029821,4.0546,149.07,148.94,80.54]
[1727319030813,4.0546,149.07,148.98,3.3564]
[1727319031312,3.3559,149.02,148.98,3.3564]
[1727319032711,3.3559,149.02,148.99,3.3563]
[1727319033321,4.0546,149.07,148.94,80.54]
[1727319034223,3.3561,149.01,148.94,80.54]
[1727319034923,3.3561,149.01,148.96,3.3569]
[1727319035618,3.3562,149.0,148.96,3.3569]
[1727319039726,4.0546,149.07,148.92,1.2746]
[1727319039727,3.3564,148.99,148.95,3.3572]
[1727319042223,3.3562,149.0,148.95,3.3572]
[1727319042423,3.3562,149.0,148.96,3.357]
[1727319046829,4.0546,149.07,148.92,1.2746]
[1727319047134,4.0546,149.07,148.92,81.8546]
[1727319047330,4.0546,149.07,148.98,3.3564]
[1727319047331,3.3558,149.02,148.98,3.3564]
[1727319050530,3.3558,149.02,148.99,3.3564]
[1727319050932,3.3558,149.02,148.92,81.8546]
[1727319051440,3.3559,149.01,148.97,3.3566]
[1727319052435,4.0546,149.07,148.92,81.8546]
[1727319052934,3.3555,149.03,148.99,3.3563]
[1727319053234,4.0546,149.07,148.92,81.8546]
[1727319054734,3.3555,149.03,148.92,81.8546]
[1727319054940,3.3555,149.03,148.99,3.3562]
[1727319057936,3.3557,149.02,148.98,3.3565]
[1727319058145,4.0546,149.07,148.94,80.58]
[1727319058436,3.3563,149.0,148.96,3.357]
[1727319060239,3.3564,148.99,148.96,3.357]
[1727319060940,4.0546,149.07,148.96,3.357]
[1727319060941,3.3562,149.0,148.96,3.357]
[1727319061542,3.3561,149.01,148.97,3.3568]
[1727319062238,3.3558,149.02,148.98,3.3566]
[1727319064446,3.356,149.01,148.98,3.3566]
[1727319067144,4.0546,149.07,148.92,81.8546]
[1727319067747,3.3552,149.05,148.92,81.8546]
[1727319068151,4.0546,149.07,148.92,81.8546]
[1727319068652,3.3554,149.04,148.92,81.8546]
[1727319069954,3.3554,149.04,149.0,3.356]
[1727319071056,3.3551,149.05,149.01,3.3558]
[1727319072851,4.0546,149.07,148.95,80.58]
[1727319073556,3.3558,149.02,148.98,3.3564]
[1727319076654,3.3558,149.02,148.93,80.56]
[1727319077060,3.3556,149.03,148.93,80.56]
[1727319077458,3.3556,149.03,148.99,3.3564]
[1727319078054,3.3557,149.02,148.93,80.56]
[1727319078858,3.3557,149.02,148.98,3.3566]
[1727319082358,4.0546,149.07,148.96,3.3569]
[1727319082955,3.3563,149.0,148.96,3.3569]
[1727319084263,3.3563,149.0,148.92,1.2746]
[1727319084264,3.3564,148.99,148.95,3.3572]
[1727319085260,4.0546,149.07,148.94,3.3575]
[1727319085261,3.3567,148.98,148.94,3.3575]
[1727319087469,3.357,148.97,148.93,3.3577]
[1727319088857,3.3567,148.98,148.94,3.3575]
[1727319090567,3.3568,148.97,148.93,3.3577]
[1727319091471,3.3572,148.96,148.92,3.3579]
[1727319096267,3.3572,148.96,148.9,52.7178981]